[Event "WALTON 1st Div Women League 2023"]
[Site "Dhaka"]
[Date "2023.03.25"]
[Round "4.7"]
[White "Parveen, Tanima"]
[Black "Inaaya, Zaman Khan"]
[Result "1-0"]
[ECO "C50"]
[WhiteElo "1960"]
[BlackElo "1137"]
[Annotator "TA"]
[PlyCount "37"]
[EventDate "2023.03.22"]
[EventType "team-tourn"]
[EventCountry "BAN"]
[SourceTitle "playchess.com"]
[Source "ChessBase"]
[SourceQuality "1"]
[TimeControl "5400+30"]

{[%evp 9,37,63,129,147,139,138,155,75,310,302,304,297,377,363,378,372,366,276,454,469,1053,1011,998,979,959,945,1919,1905,2172,2131]} 1. e4 {[%emt 0:00:02]} e5 {[%emt 0:00:07]} 2. Nf3 {[%emt 0:00:10]} Nc6 {[%emt 0:00:13]} 3. Bc4 {[%emt 0:00:15]} h6 {[%emt 0:00:16]} 4. O-O {[%emt 0:00:18]} a6 {[%emt 0:00:13]} 5. c3 {[%emt 0:00:24][%cal Bc2c3,Bc3d4,Bd4d5][%mdl 32]} Bc5 {[%emt 0:00:35]} (5... d6 $14) 6. d4 $16 {[%emt 0:00:41] C50: Hungarian Defence and Giuoco Pianissimo.} exd4 {[%emt 0:01:10]} 7. cxd4 {[%emt 0:00:09]} Bb6 {[%emt 0:00:06]} 8. Nc3 {[%emt 0:00:40] White is more active.} (8. d5 $142 Nce7 9. d6 cxd6 10. Nc3 (10. Qxd6 Nf6 $16)) 8... Nf6 $2 {[%emt 0:00:11] [#] This move loses the game for Black.} (8... d6 $16 {was necessary.}) 9. e5 $18 {[%emt 0:01:40]} Nh7 {[%emt 0:00:25]} 10. d5 {[%emt 0:03:39] [#]} Na7 $146 {[%emt 0:00:56] Black is weak on the light squares} ({Predecessor:} 10... Ne7 11. Be3 O-O 12. Bxb6 cxb6 13. a4 Ng6 14. d6 Ng5 15. Nxg5 Qxg5 16. f4 Nxf4 {0-1 De la Cruz,P (1730)-Venturas,B (533) RN-2016-0-01229}) 11. Re1 {[%emt 0:06:51]} O-O {[%emt 0:14:34]} 12. d6 {[%emt 0:06:54]} cxd6 {[%emt 0:01:05]} 13. Qxd6 {[%emt 0:01:22]} Qc7 $2 {[%emt 0:01:19]} (13... Ba5 {might work better.} 14. Bxh6 Qb6) 14. Qd3 {[%emt 0:03:24] [#] aiming for Nd5. White is clearly winning.} Rd8 {[%emt 0:04:39]} (14... Kh8 $142 15. Nd5 Qc6) 15. Nd5 {[%emt 0:01:58]} Bxf2+ {[%emt 0:10:57]} 16. Kxf2 {[%emt 0:00:07]} Qc5+ {[%emt 0:00:03]} 17. Be3 {[%emt 0:00:38]} Qa5 {[%emt 0:01:16]} 18. Bb6 {[%emt 0:00:32]} Qxe1+ {[%emt 0:01:29]} 19. Rxe1 {[%emt 0:00:08] Weighted Error Value: White=0.22 (precise) /Black=0.80} 1-0

[Event "WALTON 1st Div Women League 2023"]
[Site "Dhaka"]
[Date "2023.03.25"]
[Round "4.8"]
[White "Fatiha, Eyenoon Diya"]
[Black "Varshini V Kundar"]
[Result "0-1"]
[ECO "D37"]
[WhiteElo "1165"]
[BlackElo "1096"]
[Annotator "NA RC COMBH"]
[PlyCount "94"]
[EventDate "2023.03.22"]
[EventType "team-tourn"]
[EventCountry "BAN"]
[SourceTitle "playchess.com"]
[Source "ChessBase"]
[SourceQuality "1"]
[TimeControl "5400+30"]

1. d4 {[%emt 0:00:01]} d5 {[%emt 0:00:16]} 2. c4 {[%emt 0:00:17]} e6 {[%emt 0:00:06]} 3. Nc3 {[%emt 0:00:09]} Nf6 {[%emt 0:00:06]} 4. Nf3 {[%emt 0:00:09]} Be7 {[%emt 0:00:08]} 5. Bf4 {[%emt 0:00:20]} O-O {[%emt 0:00:28]} 6. e3 {[%emt 0:00:04]} a6 {[%emt 0:00:28]} 7. Bd3 {[%emt 0:00:15]} dxc4 {[%emt 0:04:24]} 8. Bxc4 {[%emt 0:00:30]} b5 {[%emt 0:00:06]} 9. Bd3 {[%emt 0:00:21]} Bb7 {[%emt 0:00:05]} 10. e4 {[%emt 0:00:39]} b4 {[%emt 0:03:24]} 11. e5 {[%emt 0:00:30]} bxc3 {[%emt 0:05:01]} 12. exf6 {[%emt 0:00:08]} Bxf6 {[%emt 0:00:24]} 13. bxc3 {[%emt 0:00:07]} h6 {[%emt 0:04:21]} 14. Qc2 {[%emt 0:00:27]} Bxf3 {[%emt 0:14:30]} 15. gxf3 {[%emt 0:01:00]} Bg5 {[%emt 0:00:22]} 16. Bg3 {[%emt 0:00:15]} Nd7 {[%emt 0:00:43]} 17. O-O {[%emt 0:01:15]} Kh8 {[%emt 0:02:05]} 18. Rfe1 {[%emt 0:01:49]} Nb6 {[%emt 0:02:36]} 19. f4 {[%emt 0:00:16]} Bf6 {[%emt 0:01:35]} 20. Be4 {[%emt 0:01:12]} Rb8 {[%emt 0:00:39]} 21. f5 {[%emt 0:00:22]} exf5 {[%emt 0:12:00]} 22. Bxf5 {[%emt 0:00:26]} Be7 {[%emt 0:01:39]} 23. Rab1 {[%emt 0:00:50]} Bd6 {[%emt 0:00:47]} 24. Bd3 {[%emt 0:01:13]} Ra8 {[%emt 0:07:45]} 25. c4 {[%emt 0:01:04]} Bxg3 {[%emt 0:01:15]} 26. hxg3 {[%emt 0:00:59]} Qxd4 {[%emt 0:00:09]} 27. Re4 {[%emt 0:00:21]} Qc5 {[%emt 0:00:32]} 28. Rbe1 {[%emt 0:01:04]} Rad8 {[%emt 0:02:40]} 29. Re5 {[%emt 0:00:21]} Qd4 {[%emt 0:00:33]} 30. c5 {[%emt 0:00:51]} Qxd3 {[%emt 0:00:45]} 31. Qxd3 {[%emt 0:00:08]} Rxd3 {[%emt 0:00:03]} 32. cxb6 {[%emt 0:00:08]} cxb6 {[%emt 0:00:03]} 33. Re8 {[%emt 0:00:38]} Rxe8 {[%emt 0:01:07]} 34. Rxe8+ {[%emt 0:00:08]} Kh7 {[%emt 0:00:02]} 35. Re7 {[%emt 0:00:08]} Ra3 {[%emt 0:00:35]} 36. Rxf7 {[%emt 0:00:19]} Rxa2 {[%emt 0:00:06]} 37. f4 {[%emt 0:00:11]} a5 {[%emt 0:00:39]} 38. Rb7 {[%emt 0:00:30]} Rb2 {[%emt 0:00:11]} 39. f5 {[%emt 0:00:11]} Kg8 {[%emt 0:00:21]} 40. Rb8+ {[%emt 0:00:27]} Kf7 {[%emt 0:00:04]} 41. Rb7+ {[%emt 0:00:06]} Kf6 {[%emt 0:00:05]} 42. g4 {[%emt 0:00:14]} a4 {[%emt 0:00:32]} 43. Ra7 {[%emt 0:00:12]} Rb4 {[%emt 0:00:35]} 44. g5+ {[%emt 0:00:18]} hxg5 {[%emt 0:00:05]} 45. Rb7 {[%emt 0:00:08]} a3 {[%emt 0:00:13]} 46. Ra7 {[%emt 0:00:08]} Rb3 {[%emt 0:00:05]} 47. Ra6 {[%emt 0:00:27]} Kxf5 {[%emt 0:00:06]} 0-1

[Event "WALTON 1st Div Women League 2023"]
[Site "Dhaka"]
[Date "2023.03.25"]
[Round "4.9"]
[White "Wadifa, Ahmed"]
[Black "Afrin Jahan, Munia"]
[Result "1-0"]
[ECO "C92"]
[WhiteElo "1811"]
[BlackElo "1634"]
[Annotator "NA RC COMBH"]
[PlyCount "125"]
[EventDate "2023.03.22"]
[EventType "team-tourn"]
[EventCountry "BAN"]
[SourceTitle "playchess.com"]
[Source "ChessBase"]
[SourceQuality "1"]
[TimeControl "5400+30"]

1. e4 {[%emt 0:00:35]} e5 {[%emt 0:00:20]} 2. Nf3 {[%emt 0:00:08]} Nc6 {[%emt 0:00:11]} 3. Bb5 {[%emt 0:00:06]} d6 {[%emt 0:00:55]} 4. O-O {[%emt 0:04:19]} Nf6 {[%emt 0:00:18]} 5. c3 {[%emt 0:00:59]} a6 {[%emt 0:05:10]} 6. Ba4 {[%emt 0:00:10]} b5 {[%emt 0:00:14]} 7. Bb3 {[%emt 0:00:09]} Be7 {[%emt 0:04:05]} 8. h3 {[%emt 0:01:45]} O-O {[%emt 0:00:10]} 9. Re1 {[%emt 0:00:10]} Bb7 {[%emt 0:01:40] 9...Nb8 is the modern continuation.} 10. d4 {[%emt 0:01:14]} h6 {[%emt 0:02:15]} 11. Nbd2 {[%emt 0:02:10]} Nh7 {[%emt 0:04:23]} 12. Nf1 {[%emt 0:14:44]} Ng5 {[%emt 0:09:55]} 13. Nxg5 {[%emt 0:02:33]} Bxg5 {[%emt 0:00:11] [#]} 14. Ne3 $146 {[%emt 0:01:56]} ({Predecessor:} 14. Bxg5 Qxg5 15. Re3 Ne7 16. Rg3 Qh4 17. Rg4 Qf6 18. Ng3 g5 19. f4 Ng6 20. fxg5 hxg5 {1-0 Strnad,J (1689)-Prochazka,P (1767) Hrdonov op 2012 (6)}) 14... Ne7 {[%emt 0:01:39]} 15. Bc2 {[%emt 0:01:53]} Ng6 {[%emt 0:02:22]} 16. g3 {[%emt 0:06:40]} Bc8 {[%emt 0:13:40]} 17. h4 {[%emt 0:01:19]} Bxe3 {[%emt 0:00:41]} 18. Bxe3 {[%emt 0:00:30]} Qd7 {[%emt 0:00:21]} 19. Bd3 {[%emt 0:08:03]} Qh3 {[%emt 0:12:35]} 20. Bf1 {[%emt 0:00:08]} Qg4 {[%emt 0:00:59]} 21. Qxg4 {[%emt 0:00:58]} Bxg4 {[%emt 0:00:08]} 22. a4 {[%emt 0:00:59]} c6 {[%emt 0:01:14]} 23. Kg2 {[%emt 0:03:15]} Rfe8 {[%emt 0:00:56]} 24. d5 {[%emt 0:01:36]} cxd5 {[%emt 0:02:55]} 25. exd5 {[%emt 0:03:13]} Bd7 {[%emt 0:06:30]} 26. axb5 {[%emt 0:03:01]} axb5 {[%emt 0:00:38]} 27. c4 {[%emt 0:01:31]} bxc4 {[%emt 0:01:21]} 28. Bxc4 {[%emt 0:00:12]} Reb8 {[%emt 0:01:56]} 29. b3 {[%emt 0:06:31]} Ne7 {[%emt 0:01:26]} 30. Bd2 {[%emt 0:05:51]} Nf5 {[%emt 0:09:09]} 31. Ba5 {[%emt 0:04:02]} Rb7 {[%emt 0:01:25]} 32. Bc3 {[%emt 0:01:00]} Rba7 {[%emt 0:04:03]} 33. Rxa7 {[%emt 0:01:49]} Rxa7 {[%emt 0:00:06]} 34. Ra1 {[%emt 0:00:58]} Rxa1 {[%emt 0:00:07]} 35. Bxa1 {[%emt 0:00:10]} Ne7 {[%emt 0:00:56]} 36. Bc3 {[%emt 0:11:20]} Kf8 {[%emt 0:00:34]} 37. Ba5 {[%emt 0:02:18]} Ke8 {[%emt 0:01:56]} 38. Bc7 {[%emt 0:02:47]} Nc8 $2 {[%emt 0:00:31] [#]} (38... Nf5 $11 {and Black stays safe.}) 39. Ba6 $2 {[%emt 0:02:41]} ({Only move:} 39. b4 $1 $18) 39... Ke7 {[%emt 0:00:07]} 40. b4 {[%emt 0:01:03]} Na7 $1 {[%emt 0:00:07]} 41. Bb6 {[%emt 0:00:31]} Nb5 {[%emt 0:00:09]} 42. Kf1 {[%emt 0:00:40]} Nc3 {[%emt 0:00:09]} 43. Ba5 $1 {[%emt 0:02:11]} Bb5+ {[%emt 0:01:13]} (43... Nxd5 $2 44. b5 $16) 44. Bxb5 {[%emt 0:00:09]} Nxb5 {[%emt 0:00:05]} 45. Ke2 $1 {[%emt 0:01:10]} Kd7 {[%emt 0:07:22]} 46. Kd3 {[%emt 0:00:39]} f5 {[%emt 0:01:30]} 47. Kc4 {[%emt 0:01:06]} Na3+ {[%emt 0:00:47]} 48. Kb3 {[%emt 0:00:02]} Nb5 {[%emt 0:00:10]} 49. Kc4 {[%emt 0:00:06]} Na3+ {[%emt 0:00:08]} 50. Kb3 {[%emt 0:00:04]} Nb5 {[%emt 0:00:08]} 51. h5 {[%emt 0:01:01]} Kc8 {[%emt 0:03:27]} 52. Bb6 {[%emt 0:00:13]} Kb7 $2 {[%emt 0:01:01] [#]} (52... Kd7 $1 $11 {and Black is okay.}) 53. Bd8 $1 {[%emt 0:00:16]} f4 $2 {[%emt 0:00:21]} (53... e4 54. Kc4 Na3+ 55. Kc3 Nb5+ 56. Kd2 Na3) 54. gxf4 {[%emt 0:00:14]} exf4 {[%emt 0:00:07]} 55. Be7 $2 {[%emt 0:00:30]} ({Only move:} 55. Kc4 $18 Na3+ 56. Kd3) 55... Nd4+ $1 {[%emt 0:00:07]} 56. Kc4 {[%emt 0:00:47]} Nf5 {[%emt 0:00:02]} 57. Bf8 {[%emt 0:00:46]} Kb6 {[%emt 0:01:10]} 58. Kd3 {[%emt 0:00:24]} Kb5 $2 {[%emt 0:02:07]} (58... f3 $11) 59. Ke4 $1 {[%emt 0:00:03] Deflection, Double Attack} Nh4 {[%emt 0:00:06]} 60. Bxg7 {[%emt 0:00:55]} f3 {[%emt 0:00:27]} 61. Bxh6 {[%emt 0:00:17]} Kxb4 {[%emt 0:00:09]} 62. Bg5 {[%emt 0:00:14]} Ng2 {[%emt 0:01:59]} 63. h6 {[%emt 0:00:11]} 1-0

[Event "WALTON 1st Div Women League 2023"]
[Site "Dhaka"]
[Date "2023.03.25"]
[Round "4.10"]
[White "Neelava, Choudhury"]
[Black "Ahmed, Walijah"]
[Result "0-1"]
[ECO "B44"]
[WhiteElo "1522"]
[BlackElo "1920"]
[Annotator "TA"]
[PlyCount "88"]
[EventDate "2023.03.22"]
[EventType "team-tourn"]
[EventCountry "BAN"]
[SourceTitle "playchess.com"]
[Source "ChessBase"]
[SourceQuality "1"]
[TimeControl "5400+30"]

{[%evp 18,87,15,0,0,0,0,0,0,-10,-8,-14,12,12,14,-6,0,-42,-19,-26,-19,-22,0,-16,-2,-64,-79,-125,-110,-97,-96,-111,-60,-300,-282,-308,-33,-41,-33,-43,0,0,0,0,0,0,0,0,0,0,0,-639,-631,-553,0,-127,-118,-629,-600,-610,-583,-29985,-29986,-29988,-29989,-29989,-29990,-29991,-29992,-29996,-29997,-29999]} 1. e4 {[%emt 0:07:08]} c5 {[%emt 0:00:06]} 2. Nf3 {[%emt 0:00:04]} e6 {[%emt 0:00:07]} 3. d4 {[%emt 0:00:04]} cxd4 {[%emt 0:00:05]} 4. Nxd4 {[%emt 0:00:04]} Nc6 {[%emt 0:00:06]} 5. c4 {[%emt 0:00:54]} Nf6 {[%emt 0:00:06]} 6. Nc3 {[%emt 0:00:05]} Bb4 {[%emt 0:00:04]} 7. Nxc6 {[%emt 0:01:20]} bxc6 {[%emt 0:00:04]} 8. Bd3 {[%emt 0:01:26]} e5 {[%emt 0:00:14]} 9. O-O {[%emt 0:01:34]} O-O {[%emt 0:00:33]} 10. Bg5 {[%emt 0:01:03] 10.h3 is setting a new trend.} h6 {[%emt 0:00:31] B44: Sicilian: Taimanov: 5 Nb5.} 11. Bh4 {[%emt 0:01:12]} Bxc3 {[%emt 0:00:15]} 12. bxc3 {[%emt 0:00:08]} d6 {[%emt 0:00:13] [#] The position is equal.} 13. Qd2 $146 {[%emt 0:01:54]} ({Predecessor:} 13. Bc2 c5 14. Qd2 Qe7 15. Rfd1 Rd8 16. f3 Be6 17. Qe2 g5 18. Bf2 Rab8 19. Ba4 {0-1 Katzir,M (2159)-Chan,K (2303) Titled Tuesday intern op 09th Feb blitz 2021 (5)}) 13... g5 {[%emt 0:08:02]} (13... Be6 {seems wilder.} 14. f3 Nxe4 15. Bxe4 Qxh4 16. Qxd6 Qg5) 14. Bg3 {[%emt 0:13:27]} c5 {[%emt 0:00:20]} 15. Rfd1 {[%emt 0:05:18]} Qe7 {[%emt 0:02:06]} 16. Rab1 {[%emt 0:07:54]} Be6 {[%emt 0:02:54]} 17. Qe3 {[%emt 0:16:32]} Nh5 {[%emt 0:13:51]} 18. Be2 {[%emt 0:05:27]} Nf4 {[%emt 0:01:03]} 19. Bxf4 {[%emt 0:01:48]} gxf4 {[%emt 0:05:34]} 20. Qf3 {[%emt 0:02:53]} Kh7 {[%emt 0:02:46]} 21. Qh5 {[%emt 0:02:46]} (21. Qd3 $11) 21... Rg8 $15 {[%emt 0:02:09]} 22. Rd2 {[%emt 0:04:30]} (22. Kh1 $142) 22... Rg5 $1 $17 {[%emt 0:08:51]} 23. Qf3 {[%emt 0:00:48]} Rag8 {[%emt 0:03:16] And now ...Rxg2+ would win.} 24. Bf1 {[%emt 0:01:09]} R5g6 {[%emt 0:13:24]} (24... Rh5 $17 25. g3 (25. Qxh5 Bg4 $17) 25... Rhg5) 25. Qd3 $2 {[%emt 0:03:25]} (25. Qd1 $15) 25... Qh4 $19 {[%emt 0:02:46]} 26. Kh1 {[%emt 0:04:18] [#]} (26. Qxd6 $2 Bh3 $19) (26. Rb7 Rg5 27. a4 (27. h3 $2 Bxh3 28. f3 R8g7 $19) 27... Rh5 $19) 26... Bh3 $2 {[%emt 0:05:51]} 27. f3 $1 $15 {[%emt 0:04:07] [#]} (27. gxh3 $2 Rg1#) (27. Qxh3 $2 {is the wrong capture.} Qxh3 28. g3 Qh4 $19) 27... R8g7 $1 {[%emt 0:02:11]} 28. Qe2 {[%emt 0:01:55]} (28. Rc2 Bd7) 28... Qh5 {[%emt 0:04:53]} 29. Qf2 {[%emt 0:01:58] Prevents Qh4} Bxg2+ {[%emt 0:05:54]} 30. Bxg2 {[%emt 0:01:25]} Rxg2 $40 {[%emt 0:00:05][%mdl 128] Black has some attack.} 31. Qxg2 {[%emt 0:00:09]} Rxg2 {[%emt 0:00:04]} 32. Kxg2 $11 {[%emt 0:00:15][%mdl 4096] Endgame KQ-KRR} Qg6+ {[%emt 0:00:15]} 33. Kh1 {[%emt 0:00:47]} Qe6 {[%emt 0:00:19]} 34. Rd5 $2 {[%emt 0:02:18][%mdl 8192]} (34. Rg2 $11) 34... Qh3 $19 {[%emt 0:03:21]} 35. Rd3 {[%emt 0:00:12]} Qe6 $2 {[%emt 0:05:36]} (35... d5 $19 {has better winning chances.} 36. cxd5 (36. Rxd5 $2 {too greedy.} Qxf3+ 37. Kg1 Qe3+ 38. Kf1 f3 $19) 36... c4 {[%mdl 64] Deflection}) 36. Rd5 $17 {[%emt 0:00:05]} h5 {[%emt 0:01:14] Threatens to win with ...Qh3.} 37. Rg1 $2 {[%emt 0:08:38][%mdl 8192]} (37. Rb2 $17) 37... Qh3 $19 {[%emt 0:01:45]} 38. Rd3 {[%emt 0:00:00] [#]} d5 $1 {[%emt 0:04:42][%cal Bd6d5,Bd5e4,Be4f3,Bf3f2][%mdl 544]} 39. Rg2 {[%emt 0:00:00]} (39. cxd5 c4) 39... dxe4 {[%emt 0:04:24] Black mates.} ({Worse is} 39... dxc4 40. Rd6 $11) 40. Rd5 {[%emt 0:00:28]} exf3 {[%emt 0:00:00][%csl Gf3][%cal Rh3g2]} 41. Rf2 {[%emt 0:00:26]} e4 {[%emt 0:00:00][%cal Be5e4,Be4e3][%mdl 32]} 42. Rd1 {[%emt 0:00:37]} e3 {[%emt 0:00:00]} 43. Rb2 {[%emt 0:00:37]} f2 {[%emt 0:00:00][%cal Rh3f3]} 44. Rbb1 {[%emt 0:00:18]} Qf3# {[%emt 0:00:00] Excellently played by Ahmed!   Weighted Error Value: White=0.64/Black=0.21 (precise)} 0-1

[Event "WALTON 1st Div Women League 2023"]
[Site "Dhaka"]
[Date "2023.03.25"]
[Round "4.11"]
[White "Noshin, Anjum"]
[Black "Sabikun Nahar, Tonima"]
[Result "1-0"]
[ECO "B12"]
[WhiteElo "1877"]
[BlackElo "1515"]
[Annotator "NA RC COMBH"]
[PlyCount "87"]
[EventDate "2023.03.22"]
[EventType "team-tourn"]
[EventCountry "BAN"]
[SourceTitle "playchess.com"]
[Source "ChessBase"]
[SourceQuality "1"]
[TimeControl "5400+30"]

1. e4 {[%emt 0:08:55]} c6 {[%emt 0:00:07]} 2. d4 {[%emt 0:00:14]} d5 {[%emt 0:00:08]} 3. e5 {[%emt 0:00:17]} c5 {[%emt 0:00:06]} 4. dxc5 {[%emt 0:00:49]} e6 {[%emt 0:00:09]} 5. a3 {[%emt 0:00:21]} Nd7 {[%emt 0:00:17]} 6. b4 {[%emt 0:03:30]} Nxe5 {[%emt 0:01:54]} 7. Bb2 {[%emt 0:00:10]} Ng6 {[%emt 0:08:28]} 8. Nf3 {[%emt 0:04:08]} Nf6 {[%emt 0:02:41]} 9. h4 {[%emt 0:06:35]} h5 {[%emt 0:09:35]} 10. g3 {[%emt 0:06:08]} b6 {[%emt 0:03:53]} 11. Bb5+ {[%emt 0:00:20]} Ke7 {[%emt 0:05:47]} 12. Ne5 {[%emt 0:03:36]} Nxe5 {[%emt 0:15:38]} 13. Bxe5 {[%emt 0:00:08]} Ne8 {[%emt 0:00:20]} 14. Bc6 {[%emt 0:01:32]} f6 {[%emt 0:00:50]} 15. Bd6+ {[%emt 0:05:36]} Nxd6 {[%emt 0:01:07]} 16. Bxa8 {[%emt 0:01:31]} bxc5 {[%emt 0:00:28]} 17. bxc5 {[%emt 0:06:53]} Qa5+ {[%emt 0:04:58]} 18. Qd2 {[%emt 0:00:40]} Qxc5 {[%emt 0:00:23]} 19. O-O {[%emt 0:01:32]} Bd7 {[%emt 0:00:27]} 20. Qc3 {[%emt 0:11:11]} Qb6 {[%emt 0:01:41]} 21. Qb4 {[%emt 0:04:13]} Qd8 {[%emt 0:03:06]} 22. Bb7 {[%emt 0:00:51]} Kf7 {[%emt 0:00:02]} 23. Qb3 {[%emt 0:05:43]} Qc7 {[%emt 0:03:11]} 24. Ba6 {[%emt 0:00:21]} Ne4 {[%emt 0:00:17]} 25. Be2 {[%emt 0:02:17]} Bd6 {[%emt 0:01:14]} 26. Kg2 {[%emt 0:01:41]} g6 {[%emt 0:01:10]} 27. Bf3 {[%emt 0:06:07]} Rb8 {[%emt 0:04:29]} 28. Qe3 {[%emt 0:00:15]} Kg7 {[%emt 0:03:16]} 29. Bxe4 {[%emt 0:01:02]} dxe4 {[%emt 0:00:02]} 30. Nd2 {[%emt 0:04:07]} Be5 {[%emt 0:04:18]} 31. Rab1 {[%emt 0:01:26]} Rc8 {[%emt 0:00:12]} 32. Nxe4 {[%emt 0:02:31]} Bc6 {[%emt 0:00:31]} 33. Kg1 {[%emt 0:03:00]} Bxe4 {[%emt 0:26:15]} 34. Qxe4 {[%emt 0:00:06]} Qc5 {[%emt 0:00:00]} 35. Rb7+ {[%emt 0:00:20]} Rc7 {[%emt 0:00:00]} 36. Rxc7+ {[%emt 0:00:22]} Qxc7 {[%emt 0:00:00]} 37. Rb1 {[%emt 0:00:21]} Kh6 {[%emt 0:00:00]} 38. Rb7 {[%emt 0:01:39]} Qa5 {[%emt 0:00:00]} 39. Qe3+ {[%emt 0:01:12]} g5 {[%emt 0:00:00]} 40. hxg5+ {[%emt 0:00:07]} fxg5 {[%emt 0:00:00]} 41. Qe4 {[%emt 0:00:14]} Bg7 {[%emt 0:00:00]} 42. Qxe6+ {[%emt 0:00:10]} Kh7 {[%emt 0:00:00]} 43. Qf6 {[%emt 0:01:45]} Qe1+ {[%emt 0:00:00]} 44. Kh2 {[%emt 0:00:03]} 1-0

[Event "WALTON 1st Div Women League 2023"]
[Site "Dhaka"]
[Date "2023.03.25"]
[Round "4.13"]
[White "Nargis, Kaumudi"]
[Black "Nazmin, Akter"]
[Result "1-0"]
[ECO "D02"]
[WhiteElo "1253"]
[BlackElo "1258"]
[Annotator "NA RC COMBH"]
[PlyCount "179"]
[EventDate "2023.03.22"]
[EventType "team-tourn"]
[EventCountry "BAN"]
[SourceTitle "playchess.com"]
[Source "ChessBase"]
[SourceQuality "1"]
[TimeControl "5400+30"]

1. d4 {[%emt 0:22:27]} d5 {[%emt 0:00:17]} 2. Nf3 {[%emt 0:00:06]} Nf6 {[%emt 0:00:18]} 3. b3 {[%emt 0:00:08]} c6 {[%emt 0:00:53]} 4. Bb2 {[%emt 0:00:55]} Ne4 {[%emt 0:00:32]} 5. c3 {[%emt 0:01:45]} g6 {[%emt 0:00:21]} 6. Nfd2 {[%emt 0:00:55]} Nd6 {[%emt 0:00:31]} 7. e3 {[%emt 0:00:36]} Bg7 {[%emt 0:00:11]} 8. Be2 {[%emt 0:00:09]} Nd7 {[%emt 0:00:22]} 9. O-O {[%emt 0:00:18]} O-O {[%emt 1:31:35]} 10. Bf3 {[%emt 1:08:11]} Re8 {[%emt 0:00:00]} 11. Re1 {[%emt 0:00:00]} e5 {[%emt 0:00:00]} 12. e4 {[%emt 0:00:00]} dxe4 {[%emt 0:00:00]} 13. Nxe4 {[%emt 0:00:00]} Nf5 {[%emt 0:00:00]} 14. d5 {[%emt 0:00:00]} cxd5 {[%emt 0:00:00]} 15. Qxd5 {[%emt 0:00:00]} Nb6 {[%emt 0:00:00]} 16. Qxd8 {[%emt 0:00:00]} Rxd8 {[%emt 0:00:00]} 17. Nbd2 {[%emt 0:00:00]} Be6 {[%emt 0:00:00]} 18. Rad1 {[%emt 0:00:00]} Nd5 {[%emt 0:00:00]} 19. Nc5 {[%emt 0:04:30]} Bc8 {[%emt 0:05:00]} 20. c4 {[%emt 0:00:00]} Nb4 {[%emt 0:00:00]} 21. Bxe5 {[%emt 0:00:00]} Bxe5 {[%emt 0:00:00]} 22. Rxe5 {[%emt 0:00:00]} Rb8 {[%emt 0:00:00]} 23. a3 {[%emt 0:00:00]} Nc2 {[%emt 0:00:00]} 24. Nce4 {[%emt 0:00:00]} Nxa3 {[%emt 0:00:00]} 25. Nf6+ {[%emt 0:00:00]} Kg7 {[%emt 0:00:00]} 26. Nd5 {[%emt 0:00:00]} Nc2 {[%emt 0:00:00]} 27. g4 {[%emt 0:00:00]} Nfd4 {[%emt 0:00:00]} 28. h3 {[%emt 0:00:00]} Nxf3+ {[%emt 0:00:00]} 29. Nxf3 {[%emt 0:00:00]} Be6 {[%emt 0:00:00]} 30. Rd2 {[%emt 0:00:00]} Na1 {[%emt 0:00:00]} 31. Ra2 {[%emt 0:00:00]} Nxb3 {[%emt 0:00:00]} 32. Rxa7 {[%emt 0:00:00]} Nc5 {[%emt 0:00:00]} 33. Ne1 {[%emt 0:00:00]} b5 {[%emt 0:00:00]} 34. f4 {[%emt 0:00:00]} bxc4 {[%emt 0:00:00]} 35. Ne7 {[%emt 0:00:00]} Rd1 {[%emt 0:00:00]} 36. f5 {[%emt 0:00:00]} gxf5 {[%emt 0:08:30]} 37. gxf5 {[%emt 0:09:00]} Kf6 {[%emt 0:00:00]} 38. Rxc5 {[%emt 0:00:00]} Rxe1+ {[%emt 0:01:00]} 39. Kf2 {[%emt 0:01:00]} Rbb1 {[%emt 0:00:00]} 40. fxe6 {[%emt 0:00:00]} Rf1+ {[%emt 0:00:00]} 41. Kg3 {[%emt 0:00:00]} fxe6 {[%emt 0:00:00]} 42. Ng8+ {[%emt 0:00:00]} Kg6 {[%emt 0:00:00]} 43. Ne7+ {[%emt 0:00:00]} Kf6 {[%emt 0:00:00]} 44. Ng8+ {[%emt 0:00:00]} Kg6 {[%emt 0:00:00]} 45. Rxc4 {[%emt 0:00:00]} Kh5 {[%emt 0:00:00]} 46. Rh4+ {[%emt 0:00:00]} Kg6 {[%emt 0:00:00]} 47. Rg4+ {[%emt 0:00:00]} Kh5 {[%emt 0:00:00]} 48. Ra5+ {[%emt 0:00:00]} Rf5 {[%emt 0:00:00]} 49. Rh4+ {[%emt 0:00:00]} Kg6 {[%emt 0:00:00]} 50. Ne7+ {[%emt 0:00:00]} Kg5 {[%emt 0:00:00]} 51. Nxf5 {[%emt 0:00:00]} exf5 {[%emt 0:00:00]} 52. Ra7 {[%emt 0:00:00]} Rg1+ {[%emt 0:00:00]} 53. Kh2 {[%emt 0:00:00]} Kxh4 {[%emt 0:00:00]} 54. Kxg1 {[%emt 0:00:00]} h5 {[%emt 0:00:00]} 55. Ra4+ {[%emt 0:00:00]} Kg3 {[%emt 0:00:00]} 56. Ra3+ {[%emt 0:00:00]} Kh4 {[%emt 0:00:00]} 57. Kh2 {[%emt 0:00:00]} f4 {[%emt 0:00:00]} 58. Rf3 {[%emt 0:00:00]} Kg5 {[%emt 0:00:00]} 59. Kg2 {[%emt 0:00:00]} h4 {[%emt 0:00:00]} 60. Kf2 {[%emt 0:00:00]} Kf5 {[%emt 0:00:00]} 61. Ke2 {[%emt 0:00:00]} Ke4 {[%emt 0:00:00]} 62. Rf2 {[%emt 0:00:00]} Ke5 {[%emt 0:00:00]} 63. Kf3 {[%emt 0:00:00]} Kf5 {[%emt 0:00:00]} 64. Ra2 {[%emt 0:00:00]} Ke5 {[%emt 0:00:00]} 65. Ra5+ {[%emt 0:00:00]} Kf6 {[%emt 0:00:00]} 66. Rh5 {[%emt 0:00:00]} Kg6 {[%emt 0:00:00]} 67. Rxh4 {[%emt 0:00:00]} Kg5 {[%emt 0:00:00]} 68. Rg4+ {[%emt 0:00:00]} Kh5 {[%emt 0:00:00]} 69. Rxf4 {[%emt 0:00:00]} Kg5 {[%emt 0:00:00]} 70. h4+ {[%emt 0:00:00]} Kh5 {[%emt 0:00:00]} 71. Kg3 {[%emt 0:16:00]} Kh6 {[%emt 0:16:30]} 72. Rf5 {[%emt 0:00:00]} Kg6 {[%emt 0:00:00]} 73. Rg5+ {[%emt 0:00:00]} Kh6 {[%emt 0:00:00]} 74. Kg4 {[%emt 0:00:00]} Kh7 {[%emt 0:00:00]} 75. h5 {[%emt 0:02:00]} Kh6 {[%emt 0:02:00]} 76. Rg6+ {[%emt 0:00:00]} Kh7 {[%emt 0:00:00]} 77. Kg5 {[%emt 0:00:00]} Kh8 {[%emt 0:00:00]} 78. h6 {[%emt 0:00:00]} Kh7 {[%emt 0:00:00]} 79. Re6 {[%emt 0:00:00]} Kg8 {[%emt 0:00:00]} 80. Kg6 {[%emt 0:00:00]} Kf8 {[%emt 0:00:00]} 81. Kf6 {[%emt 0:00:00]} Kg8 {[%emt 0:00:00]} 82. Re7 {[%emt 0:00:00]} Kf8 {[%emt 0:00:00]} 83. Ke6 {[%emt 0:00:00]} Kg8 {[%emt 0:00:00]} 84. Rg7+ {[%emt 0:00:00]} Kh8 {[%emt 0:00:00]} 85. Rf7 {[%emt 0:00:00]} Kg8 {[%emt 0:00:00]} 86. Kf6 {[%emt 0:00:00]} Kh8 {[%emt 0:00:00]} 87. Rb7 {[%emt 0:00:00]} Kg8 {[%emt 0:00:00]} 88. Kg6 {[%emt 0:00:00]} Kf8 {[%emt 0:00:00]} 89. h7 {[%emt 0:00:00]} Ke8 {[%emt 0:07:00]} 90. h8=Q# {[%emt 0:07:30]} 1-0